bitfinex/quotes_ETHUSD_20260227
["timestamp","ask_amount","ask_price","bid_price","bid_amount"]
[1772179839298,1.38378062,2046.5,2045.6,1.22208567]
[1772179839455,1.38378062,2046.5,2045.4,4.22831175]
[1772179839655,1.38378062,2046.5,2045.4,3.61007312]
[1772179840281,1.38378062,2046.5,2045.4,2.38786642]
[1772179840459,1.38378062,2046.5,2045.2,1.22235956]
[1772179840881,1.38378062,2046.5,2045.8,0.001]
[1772179841270,1.22165754,2046.4,2045.8,0.001]
[1772179842525,2.67527861,2046.4,2045.8,0.001]
[1772179845784,1.22165754,2046.4,2045.8,0.001]
[1772179846462,2.67527861,2046.4,2045.8,0.001]
[1772179846892,1.45362107,2046.3,2045.8,0.001]
[1772179847102,1.45362107,2046.3,2045.5,0.001]
[1772179847602,1.45362107,2046.1,2045.5,0.001]
[1772179849565,1.45362107,2045.9,2045.5,0.001]
[1772179849966,1.45362107,2045.9,2044.7,1.22264297]
[1772179849967,1.45362107,2045.8,2044.7,1.22264297]
[1772179850167,1.45362107,2045.8,2044.6,3.81703979]
[1772179850583,1.45362107,2045.8,2044.6,2.59434721]
[1772179850907,1.45362107,2045.8,2044.6,1.78919933]
[1772179851077,1.45362107,2045.8,2044.8,2.38786642]
[1772179851276,1.45362107,2045.8,2044.8,2.94992268]
[1772179851482,1.22207557,2045.7,2045.1,2.38786642]
[1772179851696,4.88758553,2046.1,2045.2,0.56205626]
[1772179851697,1.45362107,2046.1,2045.2,0.56205626]
[1772179851873,1.22189638,2046.0,2045.2,0.56205626]
[1772179853900,1.45362107,2045.9,2044.9,1.77153198]
[1772179854795,1.45362107,2045.9,2044.9,1.7715178]
[1772179855672,1.45362107,2045.9,2044.9,0.54898635]
[1772179855983,1.45362107,2045.9,2044.9,1.77152869]
[1772179855984,2.6756369,2045.8,2044.9,1.77152869]
[1772179856473,1.22201583,2045.8,2045.1,2.92827717]
[1772179857080,4.88764884,2046.0,2045.4,2.38786642]
[1772179857269,4.88748173,2046.1,2045.4,2.92405183]
[1772179857693,4.88748173,2046.1,2045.4,2.38786642]
[1772179857888,6.3411028,2046.1,2045.4,2.38786642]
[1772179858397,4.88748173,2046.1,2045.4,4.14210713]
[1772179858597,0.002,2046.2,2045.5,0.53199796]
[1772179858801,0.002,2046.2,2045.7,2.91986438]
[1772179859003,0.002,2046.2,2045.7,0.53199796]
[1772179859178,1.22377784,2046.2,2045.7,0.53199796]
[1772179859977,1.22377784,2046.2,2045.5,2.786928]
[1772179860196,0.002,2046.2,2045.6,1.22213531]
[1772179860405,0.002,2046.2,2045.8,2.38786642]
[1772179860698,0.002,2046.2,2045.7,0.52367012]
[1772179860899,1.45562107,2046.2,2045.3,1.22227671]
[1772179861197,1.45562107,2046.2,2045.4,2.38786642]
[1772179861412,1.45562107,2046.2,2045.7,2.38786642]
[1772179861413,0.002,2046.2,2045.7,2.38786642]
[1772179861612,0.002,2046.2,2045.5,0.51955473]
[1772179861833,0.002,2046.2,2045.8,2.38786642]
[1772179861985,0.002,2046.4,2046.1,2.38786642]
[1772179862393,0.002,2046.4,2046.1,3.60969265]
[1772179863316,0.002,2046.4,2046.1,1.22180103]
[1772179863523,0.002,2046.4,2046.3,2.38786642]
[1772179864193,0.002,2046.4,2046.1,0.50943235]
[1772179864416,0.002,2046.4,2046.1,1.73126304]
[1772179864991,0.002,2046.4,2046.3,2.38786642]
[1772179865194,1.22129946,2047.0,2046.3,2.38786642]
[1772179865397,2.67492053,2047.0,2046.3,2.38786642]
[1772179866198,1.22129946,2047.0,2046.3,2.8853312]
[1772179866602,1.22129946,2047.0,2046.3,4.10701807]
[1772179867290,1.22123308,2047.2,2046.6,2.38786642]
[1772179867796,1.22123308,2047.2,2046.0,4.1033096]
[1772179867797,1.45362107,2047.1,2046.0,4.1033096]
[1772179868293,1.45362107,2047.1,2046.0,4.10330374]
[1772179868493,1.45362107,2047.1,2046.0,2.88141485]
[1772179868714,1.45362107,2046.9,2046.0,2.38786642]
[1772179869117,0.002,2046.2,2046.0,2.38786642]
[1772179869317,0.002,2046.2,2045.9,1.22291107]
[1772179869522,0.002,2046.2,2045.9,0.001]
[1772179872022,1.34092883,2046.2,2045.7,0.001]
[1772179873123,1.22183666,2046.1,2045.7,0.001]
[1772179873328,2.56076549,2046.1,2045.7,0.001]
[1772179876400,1.33892883,2046.0,2045.7,0.001]
[1772179876605,2.38786642,2046.0,2044.9,0.46296923]
[1772179876907,1.33892883,2045.8,2044.9,0.46296923]
[1772179877522,1.22207557,2045.7,2044.9,0.46296923]
[1772179877721,1.33892883,2045.6,2044.9,1.68551893]
[1772179878312,1.22207557,2045.7,2045.0,0.45942014]
[1772179878617,2.5610044,2045.7,2044.9,1.2225497]
[1772179878929,2.5610044,2045.7,2045.0,2.38786642]
[1772179879930,1.33892883,2045.6,2045.0,2.38786642]
[1772179880832,1.22207557,2045.7,2045.0,4.06631129]
[1772179881537,1.33892883,2045.7,2045.0,4.06631129]
[1772179882035,1.22197455,2045.9,2045.3,2.38786642]
[1772179882735,2.56090338,2045.9,2045.3,2.38786642]
[1772179884153,2.56290338,2045.9,2045.3,2.38786642]
[1772179884652,2.56290338,2045.9,2045.2,0.45022599]
[1772179885226,0.002,2045.9,2045.3,2.83547112]
[1772179885430,1.22396357,2045.9,2045.3,2.83547112]
[1772179886442,1.34092883,2045.9,2045.2,0.001]
[1772179887014,1.34092883,2045.9,2045.2,1.66774625]
[1772179888225,1.34092883,2045.9,2045.2,0.44538636]
[1772179888917,1.22201583,2045.8,2045.2,0.44538636]
[1772179889318,1.22201583,2045.8,2045.2,1.66775627]
[1772179889551,1.22201583,2045.8,2045.2,1.66775565]
[1772179889719,1.22201583,2045.8,2045.2,0.44538636]
[1772179892256,2.56094466,2045.8,2045.2,0.44538636]
[1772179893347,1.2239872,2045.9,2045.4,0.43515537]
[1772179893720,2.56291603,2045.9,2045.3,1.22231457]
[1772179893922,1.33892883,2045.8,2045.3,1.22231457]
[1772179894130,1.33892883,2045.8,2045.2,1.65848759]
[1772179894733,0.002,2046.1,2045.6,0.43169088]
[1772179895444,0.002,2046.1,2045.6,1.65379014]
[1772179895643,0.002,2046.1,2045.6,0.43169088]
[1772179896850,1.34092883,2046.1,2045.4,4.99969746]
[1772179897222,1.34092883,2046.1,2045.4,1.65102832]
[1772179897656,1.34092883,2046.1,2045.5,0.42740324]
[1772179897657,2.56276571,2046.1,2045.5,0.42740324]
[1772179898024,0.002,2046.1,2045.5,0.42740324]
[1772179898355,1.22383949,2046.1,2045.5,0.42740324]
[1772179898534,1.22384276,2046.1,2045.5,0.42740324]
[1772179898935,0.002,2045.9,2045.5,0.42740324]
[1772179899335,0.002,2045.9,2045.4,0.001]
[1772179899765,0.002,2045.9,2045.4,0.42425983]
[1772179900944,0.002,2045.9,2045.6,0.41924117]
[1772179901750,0.002,2046.1,2045.7,0.41724117]
[1772179903264,1.35828647,2046.1,2045.4,0.001]
[1772179903648,1.35628647,2045.9,2045.4,0.001]
[1772179903864,1.35628647,2045.9,2045.2,0.001]
[1772179904037,1.35628647,2045.9,2045.2,1.63672582]
[1772179904439,1.35628647,2045.9,2045.2,0.41435289]
[1772179904977,1.35628647,2045.9,2045.2,1.63671942]
[1772179905175,2.57818285,2046.0,2045.2,0.41308949]
[1772179905378,2.57818285,2046.0,2045.2,1.63541672]
[1772179905542,1.35628647,2045.9,2045.2,1.63545171]
[1772179905738,2.57828409,2045.9,2045.2,1.63545171]
[1772179906070,2.57828409,2045.9,2045.4,0.4108435]
[1772179906071,1.22199762,2045.9,2045.4,0.4108435]
[1772179906771,2.57828409,2045.9,2045.2,1.22336222]
[1772179907157,2.57828409,2045.9,2045.2,0.001]
[1772179907352,2.57828409,2045.9,2045.2,1.22335547]
[1772179909366,1.35628647,2045.8,2045.2,1.22335547]
[1772179910377,1.35628647,2045.8,2045.2,0.001]
[1772179910577,1.22199762,2045.9,2045.4,1.22225481]
[1772179911879,2.57828409,2045.9,2045.3,4.97694345]
[1772179912055,1.35628647,2045.8,2045.2,1.22334856]
[1772179912247,1.35628647,2045.8,2045.2,0.001]
[1772179912649,2.57836204,2045.7,2045.2,0.001]
[1772179912849,1.35628647,2045.7,2045.2,0.001]
[1772179913975,1.35628647,2045.7,2045.4,0.001]
[1772179914165,1.35828647,2045.7,2045.4,0.001]
[1772179914592,1.22213531,2045.6,2045.4,0.001]
[1772179915259,2.57842178,2045.6,2045.2,0.001]
[1772179915469,1.35628647,2045.5,2045.2,0.001]
[1772179917183,1.35828647,2045.7,2045.2,0.001]
[1772179917481,1.35628647,2045.6,2045.2,0.001]
[1772179917877,0.002,2045.7,2045.2,0.39889231]
[1772179918289,0.002,2045.7,2045.4,0.39789231]
[1772179919361,0.002,2045.9,2045.7,0.39681121]
[1772179920063,2.57792322,2046.5,2045.7,0.39574067]
[1772179920272,0.004,2046.4,2045.7,0.39574067]
[1772179920658,1.36028647,2046.3,2045.6,3.34866914]
[1772179920859,1.35628647,2046.3,2045.5,1.61793573]
[1772179921178,0.004,2046.2,2045.5,1.61793573]
[1772179921380,0.004,2046.2,2045.6,0.3947016]
[1772179921683,4.88593353,2046.7,2045.5,1.22219506]
[1772179921684,1.2215103,2046.7,2045.9,0.3947016]
[1772179921883,1.2215103,2046.7,2045.8,3.34866914]
[1772179921884,2.57774748,2046.8,2046.1,0.38965665]
[1772179922381,2.57763893,2047.0,2046.2,0.38965665]
[1772179923258,2.57763893,2047.0,2046.3,1.22171724]
[1772179923696,2.57763893,2047.0,2045.7,0.3886366]
[1772179923697,1.35628647,2046.9,2045.7,0.3886366]
[1772179923859,1.35628647,2046.9,2045.8,1.22198313]
[1772179924164,1.35628647,2046.9,2045.7,1.61067201]
[1772179924352,1.35628647,2046.9,2045.7,1.22203541]
[1772179925279,2.57770527,2046.8,2046.0,1.60850652]
[1772179925461,2.57770527,2046.8,2046.1,3.73527928]
[1772179926287,1.35628647,2046.8,2046.1,3.73527928]
[1772179927184,1.35628647,2046.8,2045.8,0.38462485]
[1772179927388,1.35628647,2046.6,2045.5,1.60681991]
[1772179927590,1.35378647,2046.6,2045.5,1.60601991]
[1772179927755,1.35378647,2046.6,2045.7,0.001]
[1772179929278,1.22159784,2046.5,2045.7,0.38540847]
[1772179929986,2.62591723,2046.5,2045.7,0.38540847]
[1772179931269,1.40431939,2046.4,2045.7,0.38540847]
[1772179931504,1.22171724,2046.3,2045.8,1.22201583]
[1772179931691,1.40431939,2046.4,2045.8,1.22201583]
[1772179931881,2.62598685,2046.4,2045.8,1.22201583]
[1772179934892,1.40431939,2046.4,2045.8,1.60001727]
[1772179935674,2.62598175,2046.4,2045.8,1.60001727]
[1772179936509,1.40431939,2046.4,2045.8,1.60001727]
[1772179936913,2.62597831,2046.4,2045.8,1.60001727]
[1772179937204,1.40431939,2046.3,2045.7,1.22303283]
[1772179939290,1.22177695,2046.2,2045.7,0.001]
[1772179939507,1.40431939,2046.1,2045.5,0.001]
[1772179939681,1.40431939,2046.1,2045.5,1.22317888]
[1772179941007,1.40431939,2046.1,2045.5,4.57184802]
[1772179941576,1.40431939,2046.1,2045.7,0.001]
[1772179942408,2.62615911,2046.1,2045.7,0.001]
[1772179945308,2.62616278,2046.1,2045.7,0.001]
[1772179945484,1.40431939,2046.0,2045.7,0.001]
[1772179946509,2.62616278,2046.1,2045.7,0.001]
[1772179946703,1.40431939,2046.0,2045.7,0.001]
[1772179947399,1.22380711,2046.2,2045.7,0.001]
[1772179947400,1.40631939,2046.2,2045.7,0.001]
[1772179947605,2.62810351,2046.2,2045.7,0.001]
[1772179948414,1.40631939,2046.2,2045.7,0.001]
[1772179948591,1.40431939,2046.1,2045.7,0.001]
[1772179948992,1.40431939,2046.1,2045.5,0.001]
[1772179949209,1.22189638,2046.0,2045.5,0.001]
[1772179949415,1.40431939,2045.9,2045.5,0.001]
[1772179951195,1.22201583,2045.8,2045.5,0.001]
[1772179951383,1.40431939,2045.7,2045.5,0.001]
[1772179953183,2.62642624,2045.7,2045.2,0.001]
[1772179953391,2.62642624,2045.7,2045.3,0.001]
[1772179953589,1.40431939,2045.6,2045.3,0.001]
[1772179953818,4.88790938,2045.9,2045.3,0.36464469]
[1772179954037,1.40431939,2046.3,2045.7,2.39065936]
[1772179954187,1.22368718,2046.4,2045.8,0.36364469]
[1772179954390,1.22176892,2046.3,2045.8,0.36364469]
[1772179954590,6.29307937,2046.4,2045.9,0.001]
[1772179954591,1.40631939,2046.4,2045.9,0.001]
[1772179955016,2.62797779,2046.4,2045.9,0.001]
[1772179955214,1.22171781,2046.3,2045.9,0.001]
[1772179955422,2.62802309,2046.4,2045.9,0.001]
[1772179957393,1.40631939,2046.2,2045.7,0.001]
[1772179957596,1.40631939,2046.2,2045.8,0.001]
[1772179959733,1.40631939,2046.2,2045.5,0.001]
[1772179959734,1.3135751,2046.0,2045.5,0.001]
[1772179961618,4.88934665,2046.2,2045.5,0.001]
[1772179961619,2.55278339,2045.9,2045.5,0.001]
[1772179961818,1.33082729,2045.9,2045.5,0.001]
[1772179963931,2.55284312,2045.8,2045.5,0.001]
[1772179964133,1.33082729,2045.7,2045.5,0.001]
[1772179967727,1.33082729,2046.0,2045.5,0.001]
[1772179967929,1.33082729,2046.0,2045.5,0.35406818]
[1772179968130,0.002,2046.2,2045.7,0.35306818]
[1772179968335,0.002,2046.0,2045.6,2.39065936]
[1772179968511,0.002,2046.0,2045.5,0.35406818]
[1772179968710,1.33282729,2046.0,2045.5,0.001]
[1772179969721,1.33082729,2045.8,2045.5,0.001]
[1772179972140,1.33082729,2045.6,2045.5,0.001]
[1772179973817,1.33082729,2045.6,2045.2,0.001]
[1772179974622,2.55302235,2045.5,2045.2,0.001]
[1772179974825,4.88874889,2045.6,2045.2,0.001]
[1772179974826,2.55300983,2045.6,2045.2,0.001]
[1772179975021,1.33082729,2045.7,2045.2,0.34961977]
[1772179975216,1.33082729,2045.7,2045.2,0.001]
[1772179976748,1.22213531,2045.6,2045.2,0.001]
[1772179977048,1.33082729,2045.6,2045.2,0.001]
[1772179979849,1.33082729,2045.4,2045.2,0.001]
[1772179980719,1.33082729,2045.4,2045.0,0.001]
[1772179981632,1.33082729,2045.4,2045.2,0.001]
[1772179981831,2.55314186,2045.3,2045.2,0.001]
[1772179983327,1.33082729,2045.3,2045.2,0.001]
[1772179983550,0.002,2045.5,2045.2,0.001]
[1772179984850,1.33282729,2045.5,2045.2,0.001]
[1772179985354,1.33282729,2045.5,2045.2,0.0002]
[1772179986345,0.002,2045.5,2045.2,0.0002]
[1772179986534,0.002,2045.7,2045.3,2.39065936]
[1772179986744,0.002,2045.7,2045.4,0.34133967]
[1772179987327,0.002,2045.7,2045.3,2.39065936]
[1772179987660,0.002,2045.7,2045.3,2.73145746]
[1772179989535,1.33282729,2045.7,2045.2,0.0002]
[1772179990060,1.33282729,2045.7,2045.2,1.22257345]
[1772179990354,1.33282729,2045.7,2045.2,0.0002]
[1772179991657,2.49581752,2045.6,2045.2,0.0002]
[1772179992040,1.27368221,2045.5,2045.2,0.0002]
[1772179993559,1.22221348,2045.5,2045.2,0.0002]
[1772179993857,1.27368221,2045.4,2045.2,0.0002]
[1772179994040,0.002,2045.3,2045.2,0.0002]
[1772179997558,1.27568221,2045.3,2044.9,0.47848]
[1772179997762,2.49801659,2045.3,2044.9,0.47848]
[1772179998434,0.002,2045.3,2045.1,0.47848]
[1772179999973,1.27568221,2045.3,2044.9,0.47848]
[1772180000136,1.27568221,2045.3,2044.8,0.001]
[1772180000574,1.27568221,2045.3,2044.5,0.001]
[1772180000872,1.27368221,2045.2,2044.5,0.47948]
[1772180001370,1.27368221,2045.2,2044.5,0.001]
[1772180003062,1.27368221,2045.0,2044.5,0.001]
[1772180005247,1.27368221,2044.8,2044.5,0.001]
[1772180006049,1.27368221,2044.8,2044.3,0.001]
[1772180006866,1.27368221,2044.8,2043.8,1.22316784]
[1772180007167,2.49629566,2044.8,2044.7,0.001]
[1772180007372,2.49629566,2044.8,2043.8,1.22316784]
[1772180007373,1.27368221,2044.7,2043.8,1.22316784]
[1772180007563,1.27368221,2044.7,2043.8,1.55605781]
[1772180007869,1.27368221,2044.7,2044.5,0.001]
[1772180008071,1.27368221,2044.7,2044.2,0.001]
[1772180009243,1.27368221,2044.5,2044.2,0.001]
[1772180011270,1.27368221,2044.5,2043.6,1.22329721]
[1772180011481,1.27368221,2044.3,2043.5,1.5560192]
[1772180013651,1.27368221,2044.1,2043.5,1.5560192]
[1772180014563,2.49652759,2044.5,2043.6,0.32710482]
[1772180014969,1.27368221,2044.4,2043.6,0.32710482]
[1772180015360,1.27288221,2044.4,2043.6,0.32680454]
[1772180016285,1.27288221,2044.4,2043.7,1.22327151]
[1772180016286,1.27368221,2044.2,2043.7,1.22327151]
[1772180016468,1.27368221,2044.2,2043.7,1.22247151]
[1772180017766,1.27288221,2044.2,2043.7,1.22247151]
[1772180018956,1.27288221,2044.2,2043.7,1.22167151]
[1772180019382,2.49585487,2044.2,2043.7,1.22167151]
[1772180019588,1.2564003,2044.1,2043.7,1.22267151]
[1772180019796,1.2564003,2044.1,2043.7,0.001]
[1772180020084,1.2556003,2044.1,2043.7,0.001]
[1772180020293,1.2556003,2044.1,2043.5,0.001]
[1772180020661,1.2556003,2044.1,2043.5,1.22438899]
[1772180020887,1.2556003,2044.1,2043.6,0.32194733]
[1772180021269,2.47864838,2044.1,2043.6,1.54446884]
[1772180021479,1.2556003,2044.1,2043.6,1.54446884]
[1772180021786,0.002,2044.2,2043.7,0.32013218]
[1772180022684,0.0012,2044.2,2043.7,0.32013218]
[1772180023185,2.53683064,2044.2,2043.7,0.32013218]
[1772180023371,1.31265353,2044.1,2043.6,1.22332151]
[1772180023760,1.31265353,2044.1,2043.6,1.22252151]
[1772180025579,1.31265353,2044.1,2043.5,0.31915092]
[1772180025779,1.31265353,2044.1,2043.5,1.54249308]
[1772180029495,1.31265353,2044.0,2043.5,1.54249308]
[1772180029874,1.31265353,2044.0,2043.5,1.22434216]
[1772180030228,1.31265353,2044.0,2043.5,1.22438745]
[1772180031190,1.31265353,2044.0,2043.5,1.53504139]
[1772180032174,2.53574639,2044.0,2043.7,0.001]
[1772180032374,0.002,2043.9,2043.7,0.001]
[1772180038499,1.31465353,2043.9,2043.7,0.001]
[1772180039403,2.53586519,2043.8,2043.7,0.001]
[1772180040210,1.31265353,2043.8,2043.7,0.001]
[1772180040714,1.31265353,2043.8,2043.5,0.001]
[1772180042214,1.31265353,2043.6,2043.5,0.001]
[1772180042595,1.22327151,2043.7,2043.5,0.001]
[1772180044118,2.53592504,2043.7,2043.5,0.001]
[1772180044318,0.002,2043.9,2043.7,0.30078717]
[1772180044721,0.002,2043.9,2043.5,0.30178717]
[1772180045295,0.0012,2043.9,2043.5,0.30178717]
[1772180045890,0.0012,2043.9,2043.7,0.001]
[1772180046522,1.31385353,2043.9,2043.7,0.0002]
[1772180047823,1.31225353,2043.9,2043.7,0.0002]
[1772180047987,1.22309945,2044.0,2043.5,0.29852776]
[1772180048922,2.53575298,2044.0,2043.5,0.29852776]
[1772180049133,1.31265353,2044.0,2043.5,0.29852776]
[1772180050133,2.53574559,2044.0,2043.5,1.52189069]
[1772180050306,1.31265353,2044.0,2043.5,1.52189069]
[1772180050928,2.53575284,2044.0,2043.5,1.52189069]
[1772180051436,1.31265353,2044.0,2043.5,1.52189069]
[1772180052934,2.53575259,2044.0,2043.5,1.52189069]
[1772180053134,1.26805839,2043.9,2043.5,1.52189069]
[1772180053435,1.26805839,2043.9,2043.5,0.0004]
[1772180054235,1.26805839,2043.7,2043.5,0.0004]
[1772180056745,1.26805839,2043.8,2043.5,0.0004]
[1772180056930,2.49118223,2044.0,2043.5,0.0004]
[1772180057114,2.49115226,2044.0,2043.7,0.001]
[1772180057524,0.002,2043.8,2043.7,0.001]
[1772180060348,0.002,2044.0,2043.7,0.29018408]
[1772180061724,1.27005839,2044.0,2043.7,0.001]
[1772180061936,2.49315082,2044.0,2043.5,0.0004]
[1772180062113,1.27005839,2044.0,2043.5,0.28630716]
[1772180063439,2.49315815,2044.0,2043.5,0.28630716]
[1772180063742,1.27005839,2044.0,2043.5,0.28630716]
[1772180063953,2.49315233,2044.0,2043.5,0.28630716]
[1772180064429,1.27005839,2044.0,2043.5,1.509667]
[1772180065318,0.002,2044.0,2043.6,0.28407579]
[1772180065852,1.27005839,2044.0,2043.6,0.28407579]
[1772180066351,1.27005839,2044.0,2043.6,1.5073858]
[1772180066535,1.27005839,2044.0,2043.6,0.28407579]
[1772180066858,1.27005839,2044.0,2043.6,1.50740259]
[1772180069353,1.27005839,2044.0,2043.6,0.28407579]
[1772180069559,1.26805839,2043.9,2043.7,0.001]
[1772180069767,0.002,2043.8,2043.7,0.001]
[1772180069930,1.27005839,2043.8,2043.7,0.001]
[1772180070643,1.27005839,2043.8,2043.5,0.0004]
[1772180071152,1.26805839,2043.6,2043.5,0.0004]
[1772180072841,1.26805839,2043.5,2043.3,0.001]
[1772180073152,1.26805839,2043.5,2043.2,0.001]
[1772180073153,1.26805839,2043.2,2042.4,0.27979498]
[1772180073350,1.26805839,2043.1,2042.5,0.28179498]
[1772180073650,1.26805839,2043.1,2042.5,0.002]
[1772180073850,1.22351098,2043.3,2042.6,0.001]
[1772180073851,1.26805839,2042.9,2042.6,0.001]
[1772180074536,1.26805839,2042.9,2042.2,1.22414238]
[1772180074732,1.26805839,2042.9,2042.3,0.002]
[1772180074962,1.26805839,2042.7,2042.2,0.002]
[1772180075142,1.26805839,2042.6,2042.2,0.002]
[1772180076363,1.26805839,2042.6,2041.5,0.2795509]
[1772180076565,1.22388885,2042.7,2041.4,4.89843854]
[1772180076566,1.26805839,2042.4,2041.4,0.2795509]
[1772180076743,1.26805839,2042.4,2041.6,0.2795509]
[1772180077479,1.26805839,2042.0,2041.3,1.22470974]
[1772180077756,1.26805839,2042.0,2041.4,0.27882418]
[1772180077957,1.26805839,2042.0,2041.3,1.22470974]
[1772180078338,1.26805839,2042.0,2041.1,4.89916408]
[1772180078531,1.26805839,2042.0,2041.1,1.22482974]
[1772180079555,1.33692118,2041.8,2041.0,9.505643]
[1772180079756,1.22434987,2041.9,2040.9,1.22494977]
[1772180079757,1.33692118,2041.7,2040.9,1.22494977]
[1772180080143,1.33692118,2041.7,2040.8,1.50237629]
[1772180081579,1.24193201,2041.5,2040.7,4.90018288]
[1772180081740,1.24193201,2041.5,2040.7,5.17484595]
[1772180082074,1.24193201,2041.5,2040.5,1.49918208]
[1772180082277,1.24193201,2041.5,2040.6,0.27399218]
[1772180083354,1.24193201,2041.5,2041.3,0.001]
[1772180083539,1.24193201,2041.6,2040.8,0.27333234]
[1772180083865,1.24193201,2041.6,2041.0,0.001]
[1772180087788,1.24193201,2041.7,2041.0,0.001]
[1772180088085,1.24193201,2041.5,2041.0,0.001]
[1772180090372,1.24193201,2041.4,2041.0,0.0002]
[1772180091554,1.24113201,2041.4,2041.0,0.0002]
[1772180092765,1.24193201,2041.3,2040.8,0.0004]
[1772180094053,1.24113201,2041.3,2040.8,0.0004]
[1772180095179,1.24193201,2041.2,2040.6,4.90007638]
[1772180095391,1.24193201,2041.2,2040.7,0.48057361]
[1772180096599,1.24193201,2041.2,2040.6,5.16768933]
[1772180096600,1.24193201,2041.2,2040.8,0.48057361]
[1772180096899,1.24193201,2041.2,2041.0,0.001]
[1772180097188,1.24193201,2041.1,2041.0,0.001]
[1772180100705,1.24193201,2041.3,2041.0,0.001]
[1772180100910,0.002,2041.7,2041.3,0.26231678]
[1772180101210,1.24193201,2041.5,2041.3,0.48057361]
[1772180101390,1.24193201,2041.5,2041.1,1.22480018]
[1772180101912,0.002,2041.7,2041.3,0.26179188]
[1772180102211,0.002,2041.7,2041.6,2.401741]
[1772180102497,0.002,2041.7,2041.4,2.66353288]
[1772180102879,1.24393201,2041.7,2041.2,2.66301633]
[1772180103063,1.24193201,2041.6,2041.1,1.22482396]
[1772180103401,1.24193201,2041.5,2041.0,1.22588975]
[1772180105117,1.24193201,2041.5,2041.0,0.001]
[1772180105399,1.22453658,2041.6,2041.0,0.001]
[1772180105400,1.24193201,2041.3,2041.0,0.001]
[1772180105769,1.24193201,2041.5,2041.1,2.401741]
[1772180105975,1.24393201,2041.7,2041.1,2.401741]
[1772180106169,2.46841553,2041.7,2041.1,2.401741]
[1772180106568,1.24193201,2041.6,2041.1,2.401741]
[1772180106860,1.24193201,2041.6,2041.0,0.001]
[1772180107260,1.24193201,2041.4,2041.0,0.001]
[1772180108790,1.24193201,2041.4,2040.8,0.001]
[1772180109291,1.24193201,2041.2,2040.8,0.001]
[1772180111209,1.24193201,2041.2,2041.0,0.001]
[1772180112781,0.002,2041.3,2041.0,2.402741]
[1772180112983,0.002,2041.3,2041.0,0.001]
[1772180113505,2.51852276,2041.2,2041.0,0.001]
[1772180113696,1.29372974,2041.1,2041.0,0.001]
[1772180113893,1.29372974,2041.1,2040.8,0.001]
[1772180115695,1.29372974,2041.0,2040.8,0.001]
[1772180117672,1.29372974,2040.8,2040.5,0.001]
[1772180118313,1.29372974,2040.8,2040.1,0.001]
[1772180118488,3.62669077,2040.9,2039.8,1.22560754]
[1772180118489,1.29372974,2040.6,2039.8,1.22560754]
[1772180118678,1.29372974,2040.6,2039.7,1.22563072]
[1772180119295,1.29372974,2040.6,2038.9,4.90446107]
[1772180119296,1.29372974,2040.6,2039.3,3.62765185]
[1772180119684,1.29372974,2040.4,2039.4,0.255457]
[1772180120012,1.29372974,2040.4,2039.7,2.65678528]
[1772180120217,1.29372974,2040.4,2039.7,0.25504428]
[1772180120218,1.29292974,2040.4,2039.7,0.25504428]
[1772180121077,1.29292974,2040.4,2039.6,0.25543849]
[1772180121574,1.29292974,2040.4,2039.6,0.25463849]
[1772180122282,1.29372974,2040.2,2039.6,1.22573053]
[1772180122677,1.29292974,2040.2,2039.6,1.22573053]
[1772180123219,1.29292974,2040.2,2039.5,3.62749578]
[1772180123377,1.29292974,2040.2,2039.4,1.22580033]
[1772180123916,1.29292974,2040.2,2039.4,1.22500033]
[1772180124313,1.29292974,2040.2,2039.3,4.90349074]
[1772180124314,1.29372974,2040.0,2039.3,4.90349074]
[1772180124909,1.29372974,2040.0,2039.9,0.001]
[1772180125108,1.29372974,2040.0,2039.3,4.90349074]
[1772180125314,1.29372974,2040.0,2039.5,2.65564401]
[1772180125535,1.29372974,2040.0,2039.7,0.001]
[1772180126047,2.5188596,2040.6,2039.8,0.25352128]
[1772180127147,1.29372974,2040.5,2039.9,1.22555027]
[1772180128445,1.29372974,2040.5,2039.9,1.47831438]
[1772180128944,2.51897969,2040.4,2039.9,1.22555027]
[1772180129125,1.29372974,2040.3,2039.8,1.22556787]
[1772180129849,1.29372974,2040.3,2039.7,0.001]
[1772180131049,1.29372974,2040.1,2039.4,0.001]
[1772180132955,1.29372974,2039.7,2038.6,3.62807279]
[1772180133273,1.29372974,2039.7,2038.6,4.59640457]
[1772180133828,1.29372974,2039.7,2038.6,4.84469495]
[1772180135036,1.29372974,2039.5,2038.6,4.84469495]
[1772180135435,1.2256345,2039.8,2039.0,0.24601136]
[1772180135649,1.2256345,2039.8,2039.2,0.24601136]
[1772180135831,4.90172515,2040.1,2039.4,3.37007278]
[1772180135832,1.29372974,2040.1,2039.4,3.37007278]
[1772180136034,1.29372974,2040.1,2039.4,3.61456825]
[1772180136555,1.29372974,2040.1,2039.4,3.61376825]
[1772180136746,1.29372974,2040.1,2039.5,0.24449547]
[1772180137057,2.51906827,2040.3,2039.6,1.22573053]
[1772180137459,1.29372974,2040.3,2039.6,1.46872458]
[1772180137759,1.29372974,2040.5,2039.8,0.24099405]
[1772180138172,0.002,2040.1,2039.8,0.24099405]
[1772180138556,0.002,2040.4,2039.8,0.24099405]
[1772180139069,0.002,2040.4,2039.8,0.24019405]
[1772180139847,0.002,2040.4,2039.9,1.22555027]
[1772180140165,0.0012,2040.4,2040.1,0.23295455]
[1772180141563,0.0012,2040.4,2040.1,0.23215455]
[1772180142141,0.0012,2040.4,2039.9,1.22555027]
[1772180142644,0.0004,2040.4,2039.9,1.22555027]
[1772180143861,0.0004,2040.4,2040.0,3.37007278]
[1772180144261,0.0004,2040.4,2040.1,1.22543012]
[1772180145841,0.0004,2040.4,2040.0,4.59551591]
[1772180147362,1.28866126,2040.4,2039.8,4.90232525]
[1772180147562,1.28866126,2040.4,2039.7,1.22563069]
[1772180150170,1.28826126,2040.2,2039.5,1.22579063]
[1772180151765,1.28826126,2040.2,2039.7,0.001]
[1772180151970,1.29026126,2040.2,2039.7,0.001]
[1772180154371,1.28826126,2040.1,2039.7,0.001]
[1772180155546,0.002,2040.2,2039.7,0.21383156]
[1772180156372,1.29026126,2040.2,2039.7,0.21383156]
[1772180156669,1.29026126,2040.2,2039.8,1.22561035]
[1772180157657,1.28826126,2040.1,2039.7,1.22662082]
[1772180157886,1.28826126,2040.1,2039.7,0.001]